Workbook

Sheet leltar (hidden)
A1: DIGIT | B1: K/F | C1: ARCHIV | D1: Szerző | E1: Cím | F1: kiadás helye | G1: év | H1: évfolyam | I1: ÉVSZÁM | J1: szám | K1: terjedelem | L1: oldalszám | M1: megjegyzés | N1: helyrajzi szám | O1: leltári szám | P1: Beszerzés módja | Q1: helyre mutató raktári jelzet
A2: D-3 | B2: K | C2: Archív | E2: Kivonat Marosszék törvényhatósági bizottságának 1874. január 15-én s folytatva tartott üléseiről vezetett jegyzőkönyvből : /Erdészeti ügyben/ | F2: Marosszék : Bothos Gy. főjegyző, 1874 | G2: 1874 | K2: 19 p. | L2: 19 | N2: DK 1 | O2: DK 151 | Q2: XI/1/1
A3: D-2 | B3: K | C3: Archív | D3: Divald Adolf (1828-1891) | E3: Jelentés az ungvár-nyíregyházai vasútról a kincstári jövedelmek emelése érdekében / Divald Adolf | F3: Buda, 1870 | G3: 1870 | K3: 8 | L3: 8 | M3: kézirat | N3: DK 3 | O3: DK 32 | Q3: XI/1/1
B4: K | C4: Archív | D4: Hideghéthy Antal | E4: Jelentés a szlavóniai végvidék erdeiről szándékolt nagyszerű faeladás űgyében / Hideghéthy Antal, Pászthory J., Vértessy S., Divald Adolf | F4: Buda, 1914 | G4: 1914 | N4: DK 4 | O4: DK 39
B5: K | C5: Archív | E5: Erdőtörvény-tervezet és indoklás : /Litográfia/ | F5: Budapest : M.Kir.Földmívelésügyi Minisztérium, 1879 | G5: 1879 | K5: 83 + 28 p. | L5: =83+28 -> 111 | N5: DK 5 | O5: DK 130 | Q5: XI/1/1
B6: K | C6: Archív | E6: Erdőtörvény. : Az 1879: XXXI.t.c. hiteles kiadása | F6: Budapest : M.Kir.Földmívelésügyi Minisztérium, 1879 | G6: 1879 | K6: 44 p. | L6: 44 | N6: DK 6 | O6: DK 133 | Q6: XI/1/1
B7: K | C7: Archív | E7: Erdőtörvényjavaslat és indoklás. : /1879: XXXI. t.c./ Bedő Albert jegyzeteivel | F7: Budapest : M.Kir.Földmívelésügyi Minisztérium, 1879 | G7: 1879 | K7: 51 p. | L7: 51 | N7: DK 7 | O7: DK 460 | Q7: XI/1/1
B8: K | C8: Archív | E8: Unterricht, nach welchen die königl.hung. Kameral, und Fiskal-Herrschaften und Güter, zu Folge allerhöchster Engtschliessung de dato 15 April 1796. beschrieben werden müssen | F8: Buda, 1797 | G8: 1797 | K8: 68 p. | L8: 68 | N8: DK 8 | O8: DK 147 | Q8: XI/1/1
A9: D-2 | B9: K | C9: Archív | E9: Törvényjavaslat az erdőkről | F9: Budapest : M.Kir.Földmívelésügyi Minisztérium, 1916 | G9: 1916 | K9: 451 p. | L9: 451 | N9: DK 9 | O9: DK 435 | Q9: XI/1/1
A10: D-2 | B10: K | C10: Archív | E10: Szolgálati utasítás a besztercebányai m.kir. erdőgazdasági kerület részére | F10: Besztercebánya : M.Kir.Erdőigazgatóóság, 1897 | G10: 1897 | K10: 703 p. + 1 térk. | L10: 704 | N10: DK 10 | O10: DK 254 | Q10: XI/1/1
A11: D-2 | B11: K | C11: Archív | E11: Az erdőtörvényjavaslat tárgyalása. : Az 1879: XXXI. t.c. képviselő- és felsőházi tárgyalásának hiteles naplója | F11: Budapest : Országos Erdészeti Egyesület, 1879 | G11: 1879 | K11: 152 p. | L11: 152 | N11: DK 11 | O11: DK 132 | Q11: XI/1/1
A12: D-2 | B12: K | C12: Archív | E12: XXXIV-dik Árticulus: Az erdölés rendire nézve | F12: Buda, 1812 | G12: 1812 | K12: 8 p. | L12: 8 | N12: DK 12 | O12: DK 162 | Q12: XI/1/1
A13: D-2 | B13: K | C13: Archív | E13: Innstruktion für die Oberforstinspectoren | F13: [H.k.n.], 1810 | G13: 1810 | K13: 11 p. | L13: 11 | N13: DK 15 | O13: DK 146 | Q13: XI/1/1
A14: D-2 | B14: K | C14: Archív | E14: Emlékirat az Országos Erdészeti Egyesület megalakulásának 40. évfordulója alkalmából | F14: Budapest : OEE, 1906 | G14: 1906 | K14: 39 p. | L14: 39 | N14: DK 16 | O14: DK 366 | Q14: XI/1/1
A15: D-2 | B15: K | C15: Archív | D15: Hollendonner Ferenc | E15: A fenyőfélék fájának összehasonlító szövettana / Hollendonner Ferenc | F15: Budapest, 1913 | G15: 1913 | K15: 187 p. | L15: 137 | N15: DK 17 | O15: DK 415 | Q15: XI/1/1
A16: D-2 | B16: K | C16: Archív | E16: Törvényjavaslat az erdőgazdasági érdekképviseletről | F16: Budapest : M.Kir.Földmívelésügyi Minisztérium, 1922 | G16: 1922 | K16: 31 p. | L16: 31 | N16: DK 18 | O16: DK 472 | Q16: XI/1/1
A17: D-2 | B17: K | C17: Archív | E17: Törvényjavaslat az alföldi erdők telepítéséről és a fásításokról | F17: Budapest : M.Kir.Földmívelésügyi Miniszter, 1922 | G17: 1922 | K17: 21 p. | L17: 21 | N17: DK 19 | O17: DK 473 | Q17: XI/1/1
A18: D-2 | B18: K | C18: Archív | E18: Törvényjavaslat az erdészeti igazgatásról | F18: Budapest : M.Kir.Földmívelésügyi Miniszter, 1922 | G18: 1922 | K18: 14 p. | L18: 14 | N18: DK 20 | O18: DK 470 | Q18: XI/1/1
A19: D-2 | B19: K | C19: Archív | E19: Törvényjavaslat az erdőbirtokhitelről | F19: Budapest : M.Kir.Földmívelésügyi Miniszter, 1922 | G19: 1922 | K19: 6 p. | L19: 6 | N19: DK 21 | O19: DK 471 | Q19: XI/1/1
A20: D-2 | B20: K | C20: Archív | E20: Törvényjavaslat az Országos Erdei Alapról | F20: Budapest : M.Kir.Földmívelésügyi Minisztérium, 1922 | G20: 1922 | K20: 7 p. | L20: 7 | N20: DK 22 | O20: DK 469 | Q20: XI/1/1
B21: K | C21: Archív | D21: Bedő Albert (1839-1918) | E21: A m. kir. államerdők gazdasági és kereskedelmi leírása / Bedő Albert | F21: Budapest, 1878 | G21: 1878 | K21: 204 p. | L21: 204 | N21: DK 23 | O21: DK 5 | Q21: XI/1/1
B22: K | C22: Archív | D22: Bedő Albert (1839-1918) | E22: Die wirtschaftliche und commercielle Beschreibung der königl. ungarischen Staatsforste / Bedő Albert | F22: Budapest, 1878 | G22: 1878 | K22: 211 p. | L22: 211 | N22: Dk 24 | O22: Dk 21 | Q22: XI/1/1
B23: K | C23: Archív | D23: Bedő Albert (1839-1918) | E23: Description économique et commeriale des foréts de l'état de Hongrie / Bedő Albert | F23: Budapest, 1878 | G23: 1878 | K23: 208 p. | L23: 208 | N23: Dk 25 | O23: DK 26 | Q23: XI/1/1
A24: D-2 | B24: K | C24: Archív | E24: A magyar államerdők faüzleti ismertetése | F24: Budapest : M.Kir.Pénzügyminisztérium, 1873 | G24: 1873 | K24: 15 p. | L24: 15 | N24: DK 26 | O24: DK 139 | Q24: XI/1/1
A25: D-2 | B25: K | C25: Archív | D25: Lónyay Menyhért | E25: M.Kir. pénzügyminiszter előterjesztése Őfelségéhez az államvagyonról / Lónyay Menyhért | F25: Buda, 1869 | G25: 1869 | K25: 169 p. | L25: 169 | N25: DK 27/a | O25: DK 85 | Q25: XI/1/1
A26: D-2 | B26: K | C26: Archív | D26: Lónyay Menyhért | E26: M.Kir. pénzügyminiszter előterjesztése Őfelségéhez az államvagyonról, mellékletek / Lónyay Menyhért | F26: Buda, 1869 | G26: 1869 | K26: 169 p. | L26: 169 | N26: DK 27/b | O26: DK 85 | Q26: XI/1/1
A27: D-3 | B27: K | C27: Archív | E27: Nemzetgyűlési napló az erdészeti igazgatásról, az alföldi erdők telepítéséről és fásításokról, az Orsz. Erdei Alapról és erdőbirtokhitelről | F27: Budapest, 1923 | G27: 1923 | K27: 506 p. | L27: 506 | N27: DK 28 | O27: DK 474 | Q27: XI/1/4
A28: D-2 | B28: K | C28: Archív | E28: Törvényjavaslat az ország erdélyi részeiben, továbbá a volt Kraszna, Közép-Szolnok, Záránd megyék és a volt Kővár vidék területén a birtokrendezésről, arányosításról és tagosításról szóló 1871: XL. és 1892: XXIV. törvénycikkek módosításáról és kiegészítéséről | F28: Budapest : M.Kir.Igazsáágügyminisztérium, 1907 | G28: 1907 | K28: 48 p. | L28: 48 | N28: DK 29 | O28: DK 362 | Q28: XI/1/1
B29: K | C29: Archív | D29: Bedő Albert (1839-1918) | E29: Statistische Daten aus den ungarischen Staatsforsten mit Rücksich auf den Holzhandel / Bedő Albert | F29: Budapest, 1873 | G29: 1873 | K29: 15 p. | L29: 15 | N29: DK 30 | O29: DK 22 | Q29: XI/1/1
A30: D-2 | B30: K | C30: Archív | D30: Divald Adolf (1828-1891) | E30: Jelentés Máramaros, Ungh és Lipót megye kincstári erdőségeiről / Divald Adolf | F30: Buda, 1870 | G30: 1870 | K30: 121 p. | L30: 121 | N30: DK 31 | O30: DK 34 | Q30: XI/1/4
B31: K | C31: Archív | D31: Divald Adolf (1828-1891) | E31: Jelentés Erdély kincstári erdőségeiről / Divald Adolf | F31: Buda, 1871 | G31: 1871 | K31: 142 p. | L31: 142 | N31: DK 32 | O31: DK 33 | Q31: XI/1/4
A32: D-2 | B32: K | C32: Archív | D32: Sümegh Ignácz | E32: Az Erdélyi Erdőipar Rt. keletkezéséről és jelen üzemének berendezeséről / Sümegh Ignácz | F32: Budapest, 1896 | G32: 1896 | K32: 30 p. | L32: 30 | N32: DK 33 | O32: DK 344 | Q32: XI/1/4
B33: K | C33: Archív | D33: Greiner, Ludwig | E33: Forst-Statistik des Waldreichen Gömörer Comitates in Ungarn / Ludwig Greiner | F33: Pest, 1873 | G33: 1873 | K33: 66 p. | L33: 66 | N33: DK 34 | O33: DK 62 | Q33: XI/1/1
B34: K | C34: Archív | D34: Greiner, Ludwig | E34: Grundzüge zu dem Forst-Taxationsverfahren und zum Zeichnen der Forstkarten auf den Herzogl. Sachsen-Coburgschen Gütern in Ungarn / Ludwig Greiner | F34: Pest, 1873 | G34: 1873 | K34: 84 p. | L34: 84 | N34: DK 35 | O34: DK 63 | Q34: XI/1/1
A35: D-2 | B35: K | C35: Archív | E35: Vadászati törvény : /1883: XX. t.c./ | F35: Budapest : M. Kir. Földmívelésügyi Minisztérium, 1883 | G35: 1883 | K35: 15 + 15 p. | L35: 30 | N35: DK 36 | O35: DK 144 | Q35: XI/1/4
A36: D-3 | B36: K | C36: Archív | D36: Fekete Lajos (1837-1916) | E36: Az erdészeti jelentőségű fák és cserjék elterjedése a magyar állam területén / Fekete Lajos; Blattny T. | F36: Selmeczbánya, 1913 | G36: 1913 | K36: 793 p. | L36: 793 | N36: DK 37/a | O36: DK 436 | Q36: XI/1/4
A37: D-3 | B37: K | C37: Archív | D37: Fekete Lajos (1837-1916) | E37: Az erdészeti jelentőségű fák és cserjék elterjedése a magyar állam területén / Fekete Lajos ;Blattny T. | F37: Selmeczbánya, 1913 | G37: 1913 | K37: 150 p. | L37: 150 | N37: DK 37/b | O37: DK 436 | Q37: XI/1/4
B38: K | C38: Archív | D38: Fekete Lajos (1837-1916) | E38: Die Verbreitung der forstlich wichtigen Bäume und Sträucher im ungarischen Staate / Fekete Lajos, Blattny T. | F38: Budapest, 1914 | G38: 1914 | K38: 845 p. | L38: 845 | N38: DK 38/a | O38: DK 459 | Q38: XI/1/4
B39: K | C39: Archív | D39: Fekete Lajos (1837-1916) | E39: Die Verbreitung der forstlich wichtigen Bäume und Sträucher im ungarischen Staate / Fekete Lajos, Blattny T. | F39: Budapest, 1914 | G39: 1914 | K39: 147 p. | L39: 147 | N39: DK 38/b | O39: DK 459/b | Q39: XI/1/4
A40: D-2 | B40: K | C40: Archív | E40: Erdei- és vadászati-kalendáriom | F40: Kassa : Werfer Károly, 1835 | G40: 1835 | K40: 67 p. | L40: 67 | N40: DK 39 | O40: DK 123 | Q40: XI/1/4
A41: D-2 | B41: K | C41: Archív | D41: Arató Gyula | E41: Erdészetünk az 1896. évi ezredéves országos kiállításon / Arató Gyula | F41: Budapest, 1898 | G41: 1898 | K41: 68 p. | L41: 68 | N41: DK 40 | O41: DK 248 | Q41: XI/3/1
A42: D-2 | B42: K | C42: Archív | D42: Gyurik Gyula | E42: Körmöczbánya szab. kir. főbányaváros és a m. kir bányakincstár között a város területi és Stubna-uradalmi erdők kezelése és használata iránt fenforgó viszály, tekintettel a hazai bányajogra / Gyurik Gyula | F42: Budapest, 1879 | G42: 1879 | K42: 210 p. | L42: 210 | N42: DK 41 | O42: DK 324 | Q42: XI/3/1
A43: D-3 | B43: K | C43: Archív | D43: Wagner János | E43: A delibláti kincstári homokpuszta növényvilága / Wagner János | F43: Budapest, 1914 | G43: 1914 | K43: 50 p. | L43: 50 | M43: különlenyomat Erdészeti Kisérletek | N43: DK 42 | O43: DK 444 | Q43: XI/3/1
B44: K | C44: Archív | D44: Wagner János | E44: Die Vegetation der äraischen Sandpuszta Deliblát / WagnerJános | F44: Selmecbánya, 1914 | G44: 1914 | K44: 56 p. | L44: 56 | M44: különlenyomat Erdészeti Kisérletek | N44: DK 43 | O44: DK 445 | Q44: XI/3/1
B45: K | C45: Archív | D45: Bernátsky, J. | E45: Die Bäume und Sträucher des Ungarischen Tieflandes / Bernátsky, J. | F45: Budapest, 1914 | G45: 1914 | K45: 59 p. | L45: 59 | N45: DK 44 | O45: DK 446 | Q45: XI/3/1
B46: K | C46: Archív | D46: Lengyel Géza | E46: Die Flora des Stureczpasses / Lengyel Géza | F46: Selmeczbánya, 1915 | G46: 1915 | K46: 44 p. | L46: 44 | N46: DK 45 | O46: DK 447 | Q46: XI/3/1
B47: K | C47: Archív | D47: Lengyel Géza | E47: Die Flora der zur kön. ung. Försterschule in Vadászerdő gehörigen Reviere Vadászerdő, Bisztra u. Hidasliget / Lengyel Géza | F47: Selmeczbánya, 1915 | G47: 1915 | K47: 48 p. | L47: 48 | N47: DK 46 | O47: DK 448 | Q47: XI/3/1
B48: K | C48: Archív | D48: Lengyel Géza | E48: Die Flora der zur Königl. ung. Försterschule zu Királyhalom / Lengyel Géza | F48: Selmeczbánya, 1915 | G48: 1915 | K48: 25 p. | L48: 25 | N48: DK 47 | O48: DK 449 | Q48: XI/3/1
B49: K | C49: Archív | D49: Lengyel Géza | E49: Die Flora der forstlichen Versuchsflächen bei Likava / Lengyel Géza | F49: Selmeczbánya, 1915 | G49: 1915 | K49: 24 p. | L49: 24 | N49: DK 48 | O49: DK 450 | Q49: XI/3/1
A50: D-2 | B50: K | C50: Archív | D50: Pressler M. R. | E50: Erdészeti köbözési táblák a méterrendszer alapján : Pressler után / Rovara Frigyes | F50: Budapest, 1876 | G50: 1876 | K50: 64 p. | L50: 64 | N50: DK 49 | O50: DK 102 | Q50: XI/3/1
A51: D-3 | B51: K | C51: Archív | D51: Borbás Vince | E51: A magyar homokpuszták növényzete vonatkozással a homokkötésre / Borbás Vince | F51: Budapest, 1884 | G51: 1884 | K51: 23 p. | L51: 23 | M51: Különlenyomat Természettudományi Közlöny 176. | N51: DK 50 | O51: DK 20 | Q51: XI/3/1
A52: D-2 | B52: K | C52: Archív | D52: Berendy Béla | E52: Legelő- és havasgazdálkodás / Berendy Béla | F52: Budapest, 1904 | G52: 1904 | K52: 391 p. | L52: 391 | N52: DK 51 | O52: DK 336 | Q52: XI/3/1
A53: D-2 | B53: K | C53: Archív | D53: Borbás Vince | E53: Temes megye vegetátiója / Borbás Vince | F53: Temesvár, 1884 | G53: 1884 | K53: 83 p. | L53: 83 | N53: DK 52 | O53: DK 163 | Q53: XI/3/1
B54: K | C54: Archív | D54: Faller Gusztáv | E54: A selmeczi m.k. bányász- és erdőakadémia évszázados fennállásának emlékkönyve : 1770 - 1870 / Faller Gusztáv | F54: Selmecz : Joerges Á., 1871 | G54: 1871 | K54: 351 p. | L54: 351 | N54: DK 53 | O54: DK 126 | Q54: XII/5
A55: D-2 | B55: K | C55: Archív | E55: A műszaki címek és a műszaki gyakorlat rendtartása | F55: Budapest : Magyar Mérnök- és Építész-Egylet, 1900 | G55: 1900 | K55: 216 p. | L55: 216 | N55: DK 54 | O55: DK 272 | Q55: XI/3/1
A56: D-2 | B56: K | C56: Archív | E56: Darstellung der Banater Güter der k.k. priv. österr. Staats-Eisenbahn-Gesellschaft, mit besonderer Rücksicht auf die Forste | F56: Wien : Typogr.-Liter.-Anstalt., 1861 | G56: 1861 | K56: 33 p. | L56: 33 | N56: DK 55 | O56: DK 129 | Q56: XI/3/1
A57: D-2 | B57: K | C57: Archív | D57: Hoffmann Sándor | E57: A Vallás és közoktatási m.kir. minisztérium felügyelete alatt álló alapítványi erdőségek fatermelési viszonyainak ismertetése / Hoffmann Sándor | F57: Budapest, 1873 | G57: 1873 | K57: 33 p. | L57: 33 | N57: DK 56 | O57: DK 70 | Q57: XI/3/1
B58: K | C58: Archív | D58: Hoffmann Sándor | E58: Der Productionsverhältisse der königlich-ungarischen Fondsdomänen-Forste / Hoffmann Sándor | F58: Budapest, 1873 | G58: 1873 | K58: 34 p. | L58: 34 | N58: DK 57 | O58: DK 73 | Q58: XI/3/1
A59: D-2 | B59: K | C59: Archív | D59: Tuzson János | E59: Anatómiai és physiológiai vizsgálatok a vörösfenyő fáján / Tuzson János | F59: Selmecbánya, 1899 | G59: 1899 | K59: 51 p. | L59: 51 | N59: DK 58 | O59: DK 264 | Q59: XI/3/1
A60: D-2 | B60: K | C60: Archív | D60: Kaán Károly (1867-1940) | E60: A természeti emlékek fenntartása / Kaán Károly | F60: Budapest, 1909 | G60: 1909 | K60: 56 p. | L60: 56 | N60: DK 59 | O60: DK 386 | Q60: XI/3/1
A61: D-2 | B61: K | C61: Archív | D61: Tornay Gyula, Szakmári Ferenc | E61: Erdészeti statisztika / Tornay Gyula, Szakmári Ferenc | F61: Budapest, 1883 | G61: 1883 | K61: 69 p. | L61: 69 | N61: DK 60 | O61: DK 104 | Q61: XI/3/1
A62: D-2 | B62: K | C62: Archív | E62: Erdőtörvény. : 1879: XXXI. t.c. | F62: Budapest : Ráth Mór, 1879 | G62: 1879 | K62: 116 p. | L62: 116 | N62: DK 61 | O62: DK 161 | Q62: XI/3/1
A63: D-2 | B63: K | C63: Archív | D63: Nagy Gyula | E63: Szabadka sz. kir. város erdészeti viszonyainak leírása / Nagy Gyula | F63: Szabadka, 1896 | G63: 1896 | K63: 35 p. | L63: 35 | N63: DK 62 | O63: DK 319 | Q63: XI/3/1
A64: D-3 | B64: K | C64: Archív | D64: Boros Marcel | E64: Hogyan lett igazzá a bolond beszéde / Boros Marcel | F64: Budapest, 1897 | G64: 1897 | K64: 48 p. | L64: 48 | N64: DK 63 | O64: DK 236 | Q64: IX/4
A65: D-2 | B65: K | C65: Archív | E65: Articuli diaetales Budenses anni M.DCCC.VII. | F65: Posonii - Pestini : Landerer M., 1808 | G65: 1808 | K65: 79 p. | L65: 79 | N65: DK 64 | O65: DK 346 | Q65: XI/3/1
A66: D-2 | B66: K | C66: Archív | E66: Az 1883. XX. törvénycikk a vadászatról, kiegészítve a reá vonatkozó törvényekkel | F66: Budapest : M.Kir.Földmívelésügyi Minisztérium, 1883 | G66: 1883 | K66: 18 p. | L66: 18 | N66: DK 65 | O66: DK 144 | Q66: XI/3/1
B67: K | C67: Archív | D67: Rowland Róbert | E67: Statistisch-topographiscsche Beschreibung der Compossessortats-Herrschaft Árva / William Rowland | F67: Árva-Váralja, 1879 | G67: 1879 | K67: 137 p. | N67: DK 66 | O67: DK 320 | Q67: XI/3/1
B68: K | C68: Archív | D68: Arató Gyula | E68: Hogyan ment férjhöz Gödör Julcsa / Arató Gyula | F68: Budapest, 1896 | G68: 1896 | K68: 39 + 39 p. | N68: DK 67 | O68: ÁK 207 | Q68: IX/4
A69: D-3 | B69: K | C69: Archív | D69: Arató Gyula | E69: Cseres Józsi és Boros Rózsi szép históriája, vagy Ki mint vet úgy arat / Arató Gyula | F69: Budapest, 1895 | G69: 1895 | K69: 47 p. | L69: 47 | N69: DK 68 | O69: DK 196 | Q69: IX/4
A70: D-2 | B70: K | C70: Archív | D70: Nikel Zsigmond | E70: Székesfehérvári országos kiállítás 1879 / Nikel Zsigmond | F70: Selmec, 1879 | G70: 1879 | K70: 77 p. | L70: 77 | N70: DK 69 | O70: DK 100 | Q70: XI/3/1
A71: D-2 | B71: K | C71: Archív | D71: Petrás Jakab | E71: Az 1879 XXXI.törvénycikknek az erdei kihágásokra vonatkozó intézkedései / Petrás Jakab | F71: Besztercze, 1910 | G71: 1910 | K71: 167 p. | L71: 167 | N71: DK 70 | O71: DK 393 | Q71: XI/3/1
A72: D6terv | B72: K | C72: Archív | D72: Tomaschek , Eduard | E72: Berechnungsschlüssel und Forstverwaltungslehre für alle Zweige des Forstfaches / Eduard Tomaschek | F72: Pressburg, 1846 | G72: 1846 | K72: 119 | L72: 119 | N72: DK 71 | O72: DK 116 | Q72: XI/3/1
A73: D-2 | B73: K | C73: Archív | D73: Fuksz Emil | E73: Vezérkönyv a gazdasági fanevelés, szaporítás és rendezés, valamint a kiürített fák évenkénti kezeléséről / Fuksz Emil | F73: Pest, 1864 | G73: 1864 | K73: 87 p. | L73: 87 | N73: DK 72 | O73: DK 55 | Q73: XI/3/1
B74: K | C74: Archív | D74: Fuchs, Friedrich | E74: Die Central-Karpaten mit den nächsten Voralpen / Fuchs Friedrich | F74: Pest, 1863 | G74: 1863 | K74: 318 p. | L74: 318 | N74: DK 73 | O74: DK 56 | Q74: XI/3/1
A75: D-2 | B75: K | C75: Archív | D75: Lukácsy Sándor | E75: A fatenyésztés / Lukácsy Sándor | F75: Vácz, 1871 | G75: 1871 | K75: 117 p. | L75: 117 | N75: DK 74 | O75: DK 86 | Q75: XI/3/1
B76: K | C76: Archív | E76: Beyträge zu dem Forstwesen | F76: Leutschau, 1829 | G76: 1829 | K76: 78 p. | L76: 78 | N76: DK 75 | O76: DK 128 | Q76: XI/3/1
A77: D-2 | B77: K | C77: Archív | D77: Nagyváti János | E77: A szorgalmatos mezei-gazda / Nagyváti János | F77: Budapest, 1791 | G77: 1791 | K77: 608 p. | L77: 608 | N77: DK 76 | O77: DK 238 | Q77: XI/3/1
A78: D-2 | B78: K | C78: Archív | E78: A Magyar Szent Korona országai "erdészet"-i kiállításának részletes katalógusa : 1900. évi párizsi nemzetközi kiállítás | F78: Budapest : M.Kir.Földművelésügyi Min., 1900 | G78: 1900 | K78: 127 p. | L78: 127 | N78: DK 77 | O78: DK 276 | Q78: XI/3/1
B79: K | C79: Archív | E79: Pays de la couronne de Hongrie Catalogue spécial "Foréts" : Exposition universelle de 1900, Paris | F79: Budapest : M.Kir. Földmívelésügyi Minisztérium, 1900 | G79: 1900 | K79: 146 p. | L79: 146 | N79: DK 78 | O79: DK 277 | Q79: XI/3/1
B80: K | C80: Archív | E80: Catalogue spécial Exposition des pays de la couronne Hongroise. : Exposition universelle de 1900 á Paris | F80: Budapest : M.Kir.Földművelésügyi Minisztérium, 1900 | G80: 1900 | K80: 539 p. | L80: 539 | N80: DK 79 | O80: HK 275 | Q80: XI/3/1
A81: D-2 | B81: K | C81: Archív | D81: Greiner L. | E81: Biztosítva vannak-e erdeink a mostani törvények által visszaélések és pusztítások ellen? / Greiner L. | F81: Budapest, 1844 | G81: 1844 | K81: 50 p. | L81: 50 | N81: DK 80 | O81: DK 59 | Q81: XI/3/2
A82: D-2 | B82: K | C82: Archív | E82: Anleitung zur Messkunst zum Gebrauche der Nationalschulen in dem Königreiche Ungarn und den damit verbundenen Staaten | F82: Buda, 1780 | G82: 1780 | K82: 138 p. | L82: 138 | N82: DK 81 | O82: DK 127 | Q82: XI/3/2
A83: D-2 | B83: K | C83: Archív | E83: A fáknak és erdőknek neveléséről és megtartásáról való rendelés (Mária Terézia rendelete) | F83: Pozsony : Landerer J. M., 1770 | G83: 1770 | K83: 56 p. | L83: 56 | N83: DK 82 | O83: DK 125 | Q83: XI/3/2
A84: D-2 | B84: K | C84: Archív | D84: Ecseri József | E84: Nemes Tordamegye flórája / Ecseri József | F84: Kolozsvár, 1844 | G84: 1844 | K84: 181 p. | L84: 181 | N84: DK 83 | O84: DK 43 | Q84: XI/3/2
A85: D-2 | B85: K | C85: Archív | D85: Fekete Lajos (1837-1916) | E85: Az erdővédelem körvonalai / Fekete Lajos | F85: Selmecz, 1877 | G85: 1877 | K85: 57 p. | L85: 57 | N85: DK 84 | O85: DK 47 | Q85: XI/3/2
A86: D-2 | B86: K | C86: Archív | D86: Fekete Lajos (1837-1916) | E86: Erdészeti talajtan / Fekete Lajos | F86: Selmecz, 1882 | G86: 1882 | K86: 184 p. | L86: 184 | N86: DK 85 | O86: DK 50 | Q86: XI/3/2
A87: D-2 | B87: K | C87: Archív | D87: Áron Ede | E87: Gyakorlati útmutatás az eperfa és selyemhernyó tenyésztésére / Áron Ede | F87: Pest, 1870 | G87: 1870 | K87: 75 p. | L87: 75 | N87: DK 86 | O87: DK 1 | Q87: XI/3/2
A88: D-2 | B88: K | C88: Archív | D88: Hubeny, Joseph | E88: Ueber die Wichtigkeit und das Wesen der Forstregulierung / Joseph Hubeny | F88: Pesth, 1835 | G88: 1835 | K88: 76 p. | L88: 76 | N88: DK 87 | O88: DK 74 | Q88: XI/3/2
A89: D-2 | B89: K | C89: Archív | D89: Jüraszek, Johann | E89: Der Förster und Jäger / Johann Juraszek | F89: Stuhlweissenburg, 1836 | G89: 1836 | K89: 120 p. | L89: 120 | N89: DK 88 | O89: DK 359 | Q89: XI/3/2
A90: D-2 | B90: K | C90: Archív | D90: Zivuska Jenő | E90: A megreformált akadémia / Zivuska Jenő | F90: Ungvár, 1906 | G90: 1906 | K90: 88 p. | L90: 88 | N90: DK 89 | O90: DK 360 | Q90: XI/3/2
A91: D-2 | B91: K | C91: Archív | D91: Witsch Rudolf | E91: Útmutatás, hogy veheti munkába legkönnyebb móddal a Budán 1807-ben tartott országgyűlésének 20.dik törvénytzikkelyét, melly a magyar országi homokos puszták haszonráfordítását sürgeti / Witsch Rudolf | F91: Buda, 1809 | G91: 1809 | K91: 176 p. | L91: 176 | N91: DK 90 | O91: DK 321 | Q91: XI/3/2
A92: D-2 | B92: K | C92: Archív | E92: Holz- und Wald-Ordnung für das Königreich Hungarn, wie die Wälder erziegelt, besser aufgebracht, vermehret, und erhalten verden können : /Maria Theresia rendelete/ Mária Terézia | F92: Pressburg : Landerer, J.M., 1780 | G92: 1780 | K92: 54 p. | L92: 54 | N92: DK 91 | O92: DK 145 | Q92: XI/3/2
A93: D-2 | B93: K | C93: Archív | D93: Lukácsy Sándor | E93: A magyar Alföld befásítása / Lukácsy Sándor | F93: Pest, 1864 | G93: 1864 | K93: 84 p. | L93: 84 | N93: DK 92 | O93: DK 87 | Q93: XI/3/2
A94: D-2 | B94: K | C94: Archív | D94: Beivinkler Károly | E94: Útmutatás az erdőérték kiszámítására, gyakorlati példákkal (német nyelvű) / Beivinkler Károly | F94: Pest, 1861 | G94: 1861 | K94: 54 p. | L94: 54 | N94: DK 93 | O94: DK 24 | Q94: XI/3/2
A95: D-2 | B95: K | C95: Archív | D95: Telkes Simon | E95: Magyarország mezőgazdaségi nyerstermékeinek és némely főbb mezőgazdasági iparkészítményeinek behozatala és kivitele / Telkes Simon | F95: Budapest, 1886 | G95: 1886 | K95: 317 p. | L95: 317 | N95: DK 94 | O95: DK 111 | Q95: XI/3/2
A96: D-2 | B96: K | C96: Archív | D96: Keleti Károly | E96: Honismertető a 1873.-i közkiállítás magyar katalógusának bevezető része / Keleti Károly | F96: Budapest, 1873 | G96: 1873 | K96: 359 p. | L96: 359 | N96: DK 95 | O96: DK 80 | Q96: XI/3/2
A97: D-2 | B97: K | C97: Archív | D97: Greiner, Ludwig | E97: Beiträge zur Kenntniss und Verbesserung des ungarischen Forstwesens und des Forstswesens im Allgemeinen /II.Band/ / Ludwig Greiner | F97: Pesth, 1843 | G97: 1843 | K97: 109 p. | L97: 109 | N97: DK 96 | O97: DK 164 | Q97: XI/3/2
A98: D-2 | B98: K | C98: Archív | D98: Schwarz, F. J. | E98: Die Forstwissenschaft in kurzen Umrissen | F98: Wien, 1852 | G98: 1852 | K98: 322 p. | L98: 322 | N98: DK 97 | O98: DK 108 | Q98: XI/3/2
A99: D-2 | B99: K | C99: Archív | D99: Wagner Károly (1830-1879) | E99: Az erdészeti müszótár előmunkálatai / Wagner Károly | F99: Selmecz, 1862 | G99: 1862 | K99: 142 p. | L99: 142 | N99: DK 98 | O99: DK 118 | Q99: XI/3/2
A100: D-2 | B100: K | C100: Archív | E100: Fülöp-Szász-Coburg-Gothai herczeg Ő Fensége magyarországi erdőségeinek, erdőkezelésének, erdőgazdálkodásának, vadászati s halászati viszonyainak leirása | F100: Budapest : Herczegi Erdőigazgatóság, 1896 | G100: 1896 | K100: 91 p. | L100: 91 | N100: DK 99 | O100: DK 351 | Q100: XI/3/2
A101: D-2 | B101: K | C101: Archív | D101: Divald Adolf (1828-1891) | E101: Igazságot kérünk : /Divald Adolf/ | F101: Budapest : [k.n.], 1874 | G101: 1874 | K101: 192 p. | L101: 192 | N101: DK 100 | O101: DK 124 | Q101: XI/3/2
A102: D-2 | B102: K | C102: Archív | D102: Greiner, Ludwig | E102: Wo durch könnte dem sehr fühlbaren Holzmangel und der Waldverwüstung in unserer Gegend /Zipsen/ am zweckmässigsten Abgeholfen werden? / Ludwig Greiner | F102: Pesth, 1845 | G102: 1845 | K102: 118 p. | N102: DK 101 | O102: DK 61 | Q102: XI/3/2
A103: D-2 | B103: K | C103: Archív | D103: Greiner, Ludwig | E103: Beiträge zur Kenntniss und Verbesserung des ungarischen Forstwesens und des Forstswesens im Allgemeinen /I.Band/ / Ludwig Greiner | F103: Pesth, 1839 | G103: 1839 | K103: 134 p. | N103: DK 102 | O103: DK 60 | Q103: XI/3/2
A104: D-2 | B104: K | C104: Archív | D104: Kerner, Anton | E104: Das Pflanzenleben der Donauender / A. Kerner | F104: Innsbruck, 1863 | G104: 1863 | K104: 348 p. | N104: DK 103 | O104: DK 82 | Q104: XI/3/2
A105: D-1 | B105: K | C105: Archív | D105: Lázár Jakab | E105: Erdészeti kézikönyv / Lázár Jakab | F105: Pest, 1884 | G105: 1884 | K105: 271 p. | L105: 271 | N105: DK 104 | O105: DK 83 | Q105: XI/3/2
A106: D-2 | B106: K | C106: Archív | D106: Egloffstein Béla | E106: Vélemény, melly a magyarországi erdők belnső igazgatását tárgyazza / Egloffstein Béla | F106: Pest, 1846 | G106: 1846 | K106: 103 p. | L106: 103 | N106: DK 105 | O106: DK 41 | Q106: XI/3/2
A107: D-1 | B107: K | C107: Archív | D107: Bocskay Rudolf | E107: Erdőgazda / Bocskai Rudolf | F107: Nagyszombat, 1853 | G107: 1853 | K107: 101 p. | L107: 101 | N107: DK 106 | O107: DK 15 | Q107: XI/3/2
A108: D-2 | B108: K | C108: Archív | D108: Hubeny, Joseph | E108: Auf Erfahrungen Begründete Anweisung zur schnellen Holzerziehung / Joseph Hubeny | F108: Pesth, 1836 | G108: 1836 | K108: 119 p. | L108: 119 | N108: DK 107 | O108: DK 75 | Q108: XI/3/2
A109: D-2 | B109: K | C109: Archív | D109: Hubeny, Joseph | E109: Entwurf einer Waldpolizei- und Waldstrafordnung für Ungarn und die Nebenländer / Joseph Hubeny | F109: Pesth, 1843 | G109: 1843 | K109: 119 p. | L109: 119 | N109: DK 108 | O109: DK 77 | Q109: XI/3/2
A110: D-2 | B110: K | C110: Archív | D110: Hubeny, Joseph | E110: Forstdienstinstruction für die Erzherzogliche Herrschaft Kiss Jenő / Joseph Hubeny | F110: Temeswar, 1836 | G110: 1836 | K110: 65 p. | L110: 65 | N110: DK 109 | O110: DK 76 | Q110: XI/3/2
A111: D-2 | B111: K | C111: Archív | E111: Az erdészet, erdészeti szakoktatás és vadászat részletes katalógusa. : /1885. évi Budapesti Országos Általános Kiállítás/ | F111: Budapest : Az Orsz.Általános Kiállítás bizottsága, 1885 | G111: 1885 | K111: 215 p. | L111: 215 | N111: DK 110 | O111: DK 131 | Q111: XI/3/2
A112: D-2 | B112: K | C112: Archív | D112: Kondor Vilmos | E112: A házi- vagy futógombáról / Kondor Vilmos | F112: Balassagyarmat, 1902 | G112: 1902 | K112: 32 p. | L112: 32 | N112: DK 111 | O112: DK 331 | Q112: XI/3/2
B113: K | C113: Archív | D113: Beivinkler Károly | E113: Erdőgazda, elméleti és gyakorlati segédkönyv / Beivinkler Károly | F113: Pest, 1853 | G113: 1853 | K113: 101 p. | L113: 101 | N113: Dk 112 | O113: DK 12 | Q113: XI/3/2
A114: D-2 | B114: K | C114: Archív | D114: Beivinkler Károly | E114: Útmutatás az erdőérték kiszámítására, gyakorlati példákkal / Beivinkler Károly | F114: Pest, 1861 | G114: 1861 | K114: 54 p. | L114: 54 | N114: DK 113 | O114: DK 13 | Q114: XI/3/2
A115: D-2 | B115: K | C115: Archív | D115: Wagner Károly (1830-1879) | E115: Lo-Presti pálya mint erdei szállítási eszköz / Wagner Károly | F115: Selmecz, 1870 | G115: 1870 | K115: 50 p. | L115: 50 | N115: DK 114 | O115: DK 119 | Q115: XI/3/2
A116: D-3 | B116: K | C116: Archív | D116: Divald Adolf (1828-1891) | E116: Erdészeti segédtáblák / Divald Adolf, Wagner Károly | F116: Buda, 1871 | G116: 1871 | K116: 243 p. | L116: 243 | N116: DK 115 | O116: DK 38 | Q116: XI/3/2
A117: D-2 | B117: K | C117: Archív | D117: Divald Adolf (1828-1891) | E117: A magyar birodalom álladalmi erdőségei kezelésének eredményei 1867-ig és lépések egy jobb jövő felé / Divald Adolf | F117: Budapest, 1868 | G117: 1868 | K117: 63 p. | L117: 63 | N117: DK 116 | O117: DK 35 | Q117: XI/3/2
A118: D-2 | B118: K | C118: Archív | D118: Divald Adolf (1828-1891) | E118: A természettudományok és az erdészet / Divald Adolf | F118: Pozsony, 1865 | G118: 1865 | K118: 24 p. | L118: 24 | N118: DK 117 | O118: DK 29 | Q118: XI/3/2
A119: D-2 | B119: K | C119: Archív | D119: Divald Adolf (1828-1891) | E119: Észrevételek Missics János úr "Észrevételei"-re a temesi fakérdés ügyében / Divald Adolf | F119: Budapest, 1868 | G119: 1868 | K119: 36 p. | L119: 36 | N119: DK 118 | O119: DK 30 | Q119: XI/3/2
B120: K | C120: Archív | E120: Vorschicht für die Vermesung, Schätzung und Betriebseinrichtung der Reichs-Forste | F120: Wien : Finanzministerium, 1857 | G120: 1857 | K120: 83 p. | L120: 83 | N120: DK 119 | O120: DK 150 | Q120: XI/3/3
A121: D-2 | B121: K | C121: Archív | E121: A Magyar Erdőszeti Egyletnek a n.m.magyar királyi Helytartótanács által helybenhagyott alapszabályai | F121: Pozsony : M.Erdőszeti Egylet, 1864 | G121: 1864 | K121: 18 p. | L121: 18 | N121: DK 120 | O121: DK 140 | Q121: XI/3/3
A122: D-2 | B122: K | C122: Archív | D122: Wagner Vilmos | E122: Építési illetékkiszabás, átszámítási és segédtáblák a métermértékre alkalmazva | F122: Budapest, 1977 | G122: 1977 | K122: 257 p. | L122: 257 | N122: DK 121 | O122: DK 121 | Q122: XI/3/3
A123: D-2 | B123: K | C123: Archív | D123: Witsch Rudolf | E123: Urbarmachung des Flugsandes in Ungarn / Witsch Rudolph | F123: Buda, 1809 | G123: 1809 | K123: 182 p. | L123: 182 | N123: DK 122 | O123: DK 122 | Q123: XI/3/3
A124: D-2 | B124: K | C124: Archív | D124: Bátky Károly | E124: Futóhomok megfogása és használása módjáról / Bátky Károly | F124: Budapest, 1842 | G124: 1842 | K124: 32 p. | L124: 32 | N124: Dk 123 | O124: Dk 158 | Q124: XI/3/3
A125: D-2 | B125: K | C125: Archív | D125: Török János | E125: A német mezőgazdák és erdőszök Boroszlóban tartott kilencedik gyülésének rövid vázlata / Török János | F125: Pest, 1845 | G125: 1845 | K125: 16 p. | L125: 16 | N125: DK 124 | O125: DK 110 | Q125: XI/3/3
A126: D-2 | B126: K | C126: Archív | D126: Mocsáry Géza | E126: A magyar államjavakról / Mocsáry Géza | F126: Budapest, 1879 | G126: 1879 | K126: 31 p. | L126: 31 | N126: DK 125 | O126: DK 96 | Q126: XI/3/3
A127: D-2 | B127: K | C127: Archív | E127: Erdészeti segédtáblák métermértékre | F127: Budapest : Földmívelés-, Ipar- és Kereskedelemügyi Miniszérium, 1883 | G127: 1883 | K127: 270 p. | L127: 270 | N127: DK 126 | O127: DK 137 | Q127: XI/3/3
A128: D-2 | B128: K | C128: Archív | D128: Mihálffy Ernő | E128: Az erdő és közgazdasági jelentősége / Mihálffy Ernő | F128: Pécs, 1883 | G128: 1883 | K128: 146 p. | L128: 146 | N128: DK 127 | O128: DK 95 | Q128: XI/3/3
A129: D-2 | B129: K | C129: Archív | D129: Marosi Ferencz | E129: A lippai m. kir. főerdőhivatal kerületéhez tartozó erdők gazdasági viszonyainak leírása / Marosi Ferencz | F129: Budapest, 1890 | G129: 1890 | K129: 72 p. | L129: 72 | N129: DK 128 | O129: DK 204 | Q129: XI/3/3
A130: D-2 | B130: K | C130: Archív | D130: Tomcsányi Gusztáv | E130: Tölgymakk telelő kunyhó / Tomcsányi Gusztáv | F130: Budapest, 1886 | G130: 1886 | K130: 8 p. | L130: 8 | N130: DK 129 | O130: DK 114 | Q130: XI/3/3
A131: D-2 | B131: K | C131: Archív | D131: Gruber, Karl | E131: Forststatistik des Komitates Zips / Karl Gruber | F131: Leutschau, 1873 | G131: 1873 | K131: 12 p. | L131: 12 | N131: DK 130 | O131: DK 66 | Q131: XI/3/3
A132: D-2 | B132: K | C132: Archív | D132: Bedő Albert (1839-1918) | E132: Nyílt levél a hazai fakereskedésünk érdekében / Bedő Albert | F132: Budapest, 1871 | G132: 1871 | K132: 12 p. | L132: 12 | N132: DK 131 | O132: Dk 2 | Q132: XI/3/3
A133: D-2 | B133: K | C133: Archív | D133: Binder József | E133: Instruction für die Anfertigung der Forstwirtschaftlichen Betriebspläne / Binder József | F133: Hermannstadt, 1881 | G133: 1881 | K133: 57 p. | L133: 57 | N133: DK 132 | O133: DK 25 | Q133: XI/3/3
A134: D-2 | B134: K | C134: Archív | D134: Erdődi Adolf | E134: Közgazdasági eszmetöredékek az erdészet köréből / Erdődi Adolf | F134: Pest, 1866 | G134: 1866 | K134: 68 p. | L134: 68 | N134: DK 133 | O134: DK 31 | Q134: XI/3/3
A135: D-2 | B135: K | C135: Archív | D135: Földes János | E135: Az erdő, annak mívelése, hasznai, védelme és rendezése / Földes János | F135: Budapest, 1911 | G135: 1911 | K135: 120 p. | L135: 120 | M135: dedikálva Bund Károlynak | N135: DK 134 | O135: DK 407 | Q135: XI/3/3
A136: D-2 | B136: K | C136: Archív | D136: Lende Ede | E136: Körmöc szab.kir. főbányaváros tulajdonát képező fekvőségek gazdasági viszonyainak ismertetése különös tekintettel az erdőgazdaságra / Lende Ede | F136: Budapest, 1887 | G136: 1887 | K136: 143 p. | L136: 143 | N136: DK 135 | O136: DK 88 | Q136: XI/3/3
A137: D-2 | B137: K | C137: Archív | D137: Bedő Albert (1839-1918) | E137: Erdészetünk leírása a világkiállítási honismertetőben / Bedő Albert | F137: Budapest, 1873 | G137: 1873 | K137: 27 p. | L137: 27 | N137: DK 136 | O137: DK 4 | Q137: XI/3/3
A138: D-2 | B138: K | C138: Archív | D138: Ajtay Sándor | E138: Az aradi és csanádi egyesült vasutak erdőbirtokának rövid ismertetése / Ajtay Sándor | F138: Budapest, 1902 | G138: 1902 | K138: 17 p. | L138: 17 | M138: különlenyomat Erdészeti Lapok 1902 XI | N138: DK 137 | O138: DK 307 | Q138: XI/3/3
A139: D-2 | B139: K | C139: Archív | D139: Kaán Károly (1867-1940) | E139: Erdőgazdaság-politikai kérdések / Kaán Károly | F139: Budapest, 1920 | G139: 1920 | K139: 100 p. | L139: 100 | N139: DK 138 | O139: DK 461 | Q139: XI/3/3
A140: D-2 | B140: K | C140: Archív | D140: Kaán Károly (1867-1940) | E140: A bükktüzifa tartósságának és kelendőségének kérdéséhez / Kaán Károly | F140: Budapest, 1902 | G140: 1902 | K140: 29 p. | L140: 29 | M140: Különlenyomat Erdészeti Lapok 1902 | N140: DK 139 | O140: DK 299 | Q140: XI/3/3
A141: D-3 | B141: K | C141: Archív | D141: Kaán Károly (1867-1940) | E141: Átalakulások az erdei termékek szállító eszközeiben / Kaán Károly | F141: Budapest, 1900 | G141: 1900 | K141: 16 p. | L141: 16 | M141: Különlenyomat Erdészeti Lapok 1899 | N141: DK 140 | O141: DK 297 | Q141: XI/3/3
A142: D-3 | B142: K | C142: Archív | D142: Kaán Károly (1867-1940) | E142: A hegyvidéki erdőgazdaság szerepe a nemzet háztartásában / Kaán Károly | F142: Budapest, 1901 | G142: 1901 | K142: 25 p. | L142: 25 | M142: Különlenyomat Erdészeti Lapok 1901 VII. | N142: DK 141 | O142: DK 298 | Q142: XI/3/3
A143: D-3 | B143: K | C143: Archív | D143: Kaán Károly (1867-1940) | E143: Utakkal-e vagy vasutakkal tárjuk fel hegyvidékünk erdőségeit / Kaán Károly | F143: Budapest, 1902 | G143: 1902 | K143: 14 p. | L143: 14 | M143: Különlenyomat Erdészeti Lapok 1902.VI. | N143: DK 142 | O143: DK 300 | Q143: XI/3/3
A144: D-3 | B144: K | C144: Archív | D144: Kaán Károly (1867-1940) | E144: A Schwarzwald szálalóvágásos haszonfa-gazdaságról / Kaán Károly | F144: Budapest, 1903 | G144: 1903 | K144: 25 p. | L144: 25 | M144: Különlenyomat Erdészeti Lapok 1903.V. | N144: DK 143 | O144: DK 503 | Q144: XI/3/3
A145: D-3 | B145: K | C145: Archív | D145: Kaán Károly (1867-1940) | E145: Nemzeti akció és erdőgazdaság / Kaán Károly | F145: Budapest, 1902 | G145: 1902 | K145: 21 p. | L145: 21 | M145: Különlenyomat Erdészeti Lapok 1902.IV. | N145: DK 144 | O145: DK 302 | Q145: XI/3/3
A146: D-3 | B146: K | C146: Archív | D146: Kaán Károly (1867-1940) | E146: A külföld erdőgazdasági beruházásai / Kaán Károly | F146: Budapest, 1902 | G146: 1902 | K146: 40 p. | L146: 40 | M146: Különlenyomat Erdészeti Lapok 1901 XII-1902 I. | N146: DK 145 | O146: DK 301 | Q146: XI/3/3
A147: D-3 | B147: K | C147: Archív | D147: Borbás Vince | E147: A fenyvesek és a fenyvek magyar nevei Vasmegyében / Borbás Vince | F147: Budapest, 1883 | G147: 1883 | K147: 12 p. | L147: 12 | M147: Különlenyomat Erdészeti Lapok 1883.VII. | N147: DK 146 | O147: DK 16 | Q147: XI/3/3
A148: D-2 | B148: K | C148: Archív | D148: Borbás Vince | E148: A magyar Nagyalföld tölgyei / Borbás Vince | F148: Budapest, 1887 | G148: 1887 | K148: 34 p. | L148: 34 | N148: DK 147 | O148: DK 18 | Q148: XI/3/3
A149: D-2 | B149: K | C149: Archív | D149: Molnár István | E149: A nemesfűz termelése / Molnár István | F149: Budapest, 1903 | G149: 1903 | K149: 80 p. | L149: 80 | N149: DK 148 | O149: DK 330 | Q149: XI/3/3
A150: D-2 | B150: K | C150: Archív | E150: Utasítás az erdei kihágási biróságok által használandó érték- és árszabályzatok kidolgozásánál követendő eljárásról | F150: Budapest : M. Kir. Földmívelésügyi Minisztérium, 1880 | G150: 1880 | K150: 19 p. | L150: 19 | N150: DK 149 | O150: DK 134 | Q150: XI/3/3
A151: D-2 | B151: K | C151: Archív | D151: Fekete Lajos (1837-1916) | E151: Erdőértékszámítástan / Fekete Lajos | F151: Selmeczbánya, 1874 | G151: 1874 | K151: 233 p. | L151: 233 | N151: DK 150 | O151: DK 45 | Q151: XI/3/3
A152: D-2 | B152: K | C152: Archív | D152: Fekete Lajos (1837-1916) | E152: Beszélgetés az új ertdőtörvényről / Fekete Lajos | F152: Kolozsvár, 1880 | G152: 1880 | K152: 68 p. | L152: 68 | N152: DK 151 | O152: DK 49 | Q152: XI/3/3
A153: D-2 | B153: K | C153: Archív | D153: Fekete Lajos (1837-1916) | E153: A Mezőség kopárainak befásítása / Fekete Lajos | F153: Kolozsvár, 1876 | G153: 1876 | K153: 161 p. | L153: 161 | N153: DK 152 | O153: DK 46 | Q153: XI/3/3
A154: D-1 | B154: K | C154: Archív | E154: Országos Erdészeti Egyesület Évkönyve, 1871-1872 | F154: Buda, 1872 | G154: 1872 | K154: 239 p. | N154: DK 153 | O154: DK 153 | Q154: XII/5
A155: D-1 | B155: K | C155: Archív | E155: Országos Erdészeti Egyesület Évkönyve, 1870 | F155: Buda, 1871 | G155: 1871 | K155: 175 p. | N155: DK 153 | O155: DK 153 | Q155: XII/5
A156: D-1 | B156: K | C156: Archív | E156: Országos Erdészeti Egyesület Évkönyve, 1867 | F156: Pest, 1868 | G156: 1868 | K156: 100 p. | N156: DK 153 | O156: DK 153 | Q156: XII/5
A157: D-1 | B157: K | C157: Archív | E157: Országos Erdészeti Egyesület Évkönyve, 1868 | F157: Pest, 1869 | G157: 1869 | K157: 152 p. | N157: DK 153 | O157: DK 153 | Q157: XII/5
A158: D-1 | B158: K | C158: Archív | E158: Országos Erdészeti Egyesület Évkönyve, 1869 | F158: Pest, 1870 | G158: 1870 | K158: 225 p. | N158: DK 153 | O158: DK 153 | Q158: XII/5
A159: D-2 | B159: K | C159: Archív | D159: Fekete Lajos (1837-1916) | E159: A Magyarországon előforduló főbb fanemek csemetéinek termesztése és ültetése / Fekete Lajos | F159: Budapest, 1889 | G159: 1889 | K159: 124 p. | L159: 124 | N159: DK 153 | O159: DK 52 | Q159: XI/3/3
A160: D-1 | B160: K | C160: Archív | E160: Az Országos Erdészeti Egyesület közleményei 1867-70 | F160: Budapest : OEE, 1867-11870 | G160: 1867 | N160: DK 154 | O160: DK 154 | Q160: XII/5
A161: D-2 | B161: K | C161: Archív | D161: Fekete Lajos (1837-1916) | E161: A tölgy és tenyésztése / Fekete Lajos | F161: Budapest, 1888 | G161: 1888 | K161: 203 p. | L161: 203 | N161: DK 154 | O161: DK 51 | Q161: XI/3/3
A162: D-2 | B162: K | C162: Archív | D162: Fekete Lajos (1837-1916) | E162: A közerdész / Fekete Lajos, Illés Nándor | F162: Budapest, 1873 | G162: 1873 | K162: 231 p. | L162: 231 | N162: DK 155 | O162: DK 53 | Q162: XI/3/3
A163: D-2 | B163: K | C163: Archív | D163: Fekete Lajos (1837-1916) | E163: Talajtan / Fekete Lajos | F163: Selmeczbánya, 1891 | G163: 1891 | K163: 210 p. | L163: 210 | N163: DK 156 | O163: DK 211 | Q163: XI/3/4
A164: D-2 | B164: K | C164: Archív | D164: Fekete Lajos (1837-1916) | E164: Erdőértékszámítástan II. / Fekete Lajos | F164: Selmeczbánya, 1892 | G164: 1892 | K164: 239 p. | L164: 237 | N164: DK 157 | O164: DK 201 | Q164: XI/3/4
A165: D-1 | B165: K | C165: Archív | D165: Fekete Lajos (1837-1916) | E165: Népszerű erdészeti növénytan, beszélgetésekben I-III. füzet / Fekete Lajos | F165: Budapest, 1901-1905 | G165: 1901 | K165: 85 + 102 + 196 p. | L165: =85+102+196 -> 383 | N165: DK 158 | O165: DK 345 | Q165: XI/3/4
A166: D-2 | B166: K | C166: Archív | D166: Fekete Lajos (1837-1916) | E166: A szálaló erdők berendezése / Fekete Lajos | F166: Budapest, 1897 | G166: 1897 | K166: 65 p. | L166: 65 | N166: DK 159 | O166: DK 246 | Q166: XI/3/4
A167: D-2 | B167: K | C167: Archív | D167: Fekete Lajos (1837-1916) | E167: Az erdő ápolásáról és használatáról, annak megalapításától a letarolás idejéig / Fekete Lajos | F167: Budapest, 1895 | G167: 1895 | K167: 106 p. | L167: 106 | N167: DK 160 | O167: DK 193 | Q167: XI/3/4
A168: D-2 | B168: K | C168: Archív | D168: Fekete Lajos (1837-1916) | E168: Erdészeti nyereségszámítástan / Fekete Lajos | F168: Selmeczbánya, 1900 | G168: 1900 | K168: 138 p. | L168: 138 | N168: DK 161 | O168: DK 271 | Q168: XI/3/4
A169: D-2 | B169: K | C169: Archív | D169: Fekete Lajos (1837-1916) | E169: Az erdészeti vagy növénytani tekintetben nevezetesebb fafajok tenyészeti határainak megállapítása / Fekete Lajos | F169: Budapest, 1898 | G169: 1898 | K169: 26 p. | L169: 26 | N169: DK 162 | O169: DK 306 | Q169: XI/3/4
A170: D-1 | B170: K | C170: Archív | D170: Fekete Lajos (1837-1916) | E170: Erdészeti rovartan / Fekete Lajos | F170: Selmecz, 1878 | G170: 1878 | K170: 334 p. | L170: 334 | N170: DK 163 | O170: DK 48 | Q170: XI/3/4
A171: D-1 | B171: K | C171: Archív | D171: Sóltz Gyula (1837-1913), Fekete Lajos | E171: Az erdőbecsléstan kézikönyve / Sóltz Gyula, Fekete Lajos | F171: Selmecbánya, 1882 | G171: 1882 | K171: 349 p. | L171: 349 | N171: DK 164 | O171: DK 54 | Q171: XI/3/4
A172: D-2 | B172: K | C172: Archív | D172: Sóltz Gyula (1837-1913), Fekete Lajos | E172: Az erdőbecsléstan kézikönyve / Sóltz Gyula, Fekete Lajos | F172: Selmecbánya, 1893 | G172: 1893 | K172: 349 p. | L172: 349 | N172: DK 165 | O172: DK 202 | Q172: XI/3/4
A173: D-2 | B173: K | C173: Archív | D173: Levitzky Albert | E173: A szászországi állami erdők gazdasági viszonyai / Levitzky Albert | F173: Budapest, 1901 | G173: 1901 | K173: 46 p. | L173: 46 | M173: Különlenyomat Erdészeti Lapok 1901/IX | N173: DK 166 | O173: DK 309 | Q173: XI/3/4
A174: D-2 | B174: K | C174: Archív | D174: Csiby Lőrinc | E174: A vízfogó gátak vastagságának elmélete és a viszonylagos anyagszükséglet / Csiby Lőrinc | F174: Budapest, 1899 | G174: 1899 | K174: 36 p. | L174: 36 | N174: DK 167 | O174: DK 310 | Q174: XI/3/4
A175: D-2 | B175: K | C175: Archív | D175: Pauer János | E175: A selmeczbányai m. kir. Bányászati és Erdészeti Főiskola programja az 1904-05-iki tanévre / Pauer János | F175: Budapest, 1904 | G175: 1904 | K175: 116 + 38 p. | L175: =116+38 -> 154 | N175: DK 168 | O175: DK 352 | Q175: XI/3/4
A176: D-2 | B176: K | C176: Archív | D176: Csiby Lőrinc | E176: A vízfogógát magasságáról és felszereléséről / Csiby Lőrinc | F176: Budapest, 1902 | G176: 1902 | K176: 44 p. | L176: 44 | M176: különlenyomat Erdészeti Lapok 1902 | N176: DK 169 | O176: DK 311 | Q176: XI/3/4
A177: D-2 | B177: K | C177: Archív | D177: Téglás Károly | E177: A legelőkérdés erdőgazdasági és közgazdasági szempontból / Téglás Károly | F177: Budapest, 1902 | G177: 1902 | K177: 28 p. | L177: 28 | N177: DK 170 | O177: DK 313 | Q177: XI/3/4
A178: D-2 | B178: K | C178: Archív | D178: Illés Nándor | E178: Erdőtenyésztéstan / Illés Nándor | F178: Buda, 1871 | G178: 1871 | K178: 341 p. | L178: 341 | N178: DK 171 | O178: DK 78 | Q178: XI/3/4
A179: D-2 | B179: K | C179: Archív | D179: Lázár Kálmán | E179: Természetbarátok és vadászok kézikönyve / Lázár Kálmán | F179: Pest, 1867 | G179: 1867 | K179: 258 p. | L179: 258 | M179: évkönyv | N179: DK 172 | O179: DK 84 | Q179: XI/3/4
A180: D-2 | B180: K | C180: Archív | D180: Balázs Árpád | E180: Magyarországi fontosabb vadontermő és míveleti fák és cserjék rendszeres leírása / Balázs Árpád | F180: Selmec, 1870 | G180: 1870 | K180: 76 p. | L180: 76 | N180: DK 173 | O180: DK 230 | Q180: XI/3/4
A181: D-2 | B181: K | C181: Archív | D181: Bekény Aladár | E181: Máramaros erdőmívelési viszonyai / Bekény Aladár | F181: Máramarossziget, 1897 | G181: 1897 | K181: 98 p. | L181: 98 | N181: Dk 174 | O181: Dk 233 | Q181: XI/3/4
A182: D-2 | B182: K | C182: Archív | D182: Schmidt Károly | E182: Ausztria, Németország, Francziaország és Svájcz fakereskedelmi és faipari viszonyai / Schmidt Károly | F182: Budapest 1901 | G182: 1901 | K182: 178 p. | L182: 178 | N182: DK 175 | O182: DK 308 | Q182: XI/3/4
A183: D-1 | B183: K | C183: Archív | D183: Szécsi Zsigmond | E183: Az erdőhasználattan kézikönyve / Szécsi Zsigmond | F183: Budapest, 1884 | G183: 1884 | K183: 714 p. | L183: 714 | N183: DK 176 | O183: DK 109 | Q183: XI/3/4
A184: D-2 | B184: K | C184: Archív | D184: Nagy Gyula | E184: Háromszékmegye erdészeti leírása / Nagy Gyula | F184: Budapest, 1885 | G184: 1885 | K184: 39 p. | L184: 39 | M184: Különlenyomat Erdészeti Lapok 1885 | N184: DK 177 | O184: DK 99 | Q184: XI/3/4
A185: D-2 | B185: K | C185: Archív | D185: Maderspasch Viktor | E185: A romboló hegyipatakok megfékezéséről, beépítéséről és partjaik beerdősítéséről / Maderspasch Viktor | F185: Budapest, 1885 | G185: 1885 | K185: 36 p. | L185: 36 | M185: Különlenyomat Erdészeti Lapok 1885 I.-II. | N185: DK 178 | O185: DK 97 | Q185: XI/3/4
A186: D-2 | B186: K | C186: Archív | D186: Nagy Gyula | E186: A Székelyföld közgazdasági szerepéről és hivatásáról, különös tekintettel az erdészetre / Nagy Gyula | F186: Marosvásárhely, 1884 | G186: 1884 | K186: 98 p. | L186: 98 | N186: DK 179 | O186: Dk 101 | Q186: XI/3/4
B187: K | C187: Archív | D187: Lavotta Albert | E187: Az erdő és az államerdészet Svédországban / Lavotta Albert | F187: Budapest, 1888 | G187: 1888 | K187: 30 p. | L187: 30 | M187: Különlenyomat Erdészeti Lapok 1888.III. | N187: DK 180 | O187: DK 89 | Q187: XI/3/4
A188: D-3 | B188: K | C188: Archív | D188: Lavotta Albert | E188: Az erdő és az államerdészet Svédországban / Lavotta Albert | F188: Budapest, 1888 | G188: 1888 | K188: 30 p. | L188: 30 | M188: Különlenyomat Erdészeti Lapok 1888.IV. | N188: DK 181 | O188: DK 90 | Q188: XI/3/4
A189: D-3 | B189: K | C189: Archív | D189: Lavotta Albert | E189: Az usztatás, fürészüzem és szenités északi Svédországban / Lavotta Albert | F189: Budapest, 1888 | G189: 1888 | K189: 22 p. | L189: 22 | M189: Különlenyomat Erdészeti Lapok 1888.XI-XII | N189: DK 182 | O189: DK 91 | Q189: XI/3/4
A190: D-2 | B190: K | C190: Archív | D190: Tomcsány Gyula | E190: Az alátelepítésről, mint a fanem megváltoztatásának egyik módjáról / Tomcsányi Gyula | F190: Budapest, 1887 | G190: 1887 | K190: 14 p. | L190: 14 | N190: DK 183 | O190: DK 112 | Q190: XI/3/4
A191: D-2 | B191: K | C191: Archív | D191: Tomcsányi Gusztáv | E191: Erdei facsemeték nevelése / Tomcsányi Gusztáv | F191: Budapest, 1889 | G191: 1889 | K191: 216 p. | L191: 216 | N191: DK 184 | O191: DK 113 | Q191: XI/3/4
A192: D-3 | B192: K | C192: Archív | D192: Tomcsányi Gusztáv | E192: Légfütésre berendezett magpergető / Tomcsányi Gusztáv | F192: Budapest, 1885 | G192: 1885 | K192: 14 p. | L192: 14 | N192: DK 185 | O192: DK 115 | Q192: XI/3/4
A193: D-2 | B193: K | C193: Archív | D193: Vadas Jenő | E193: A tölgycsemeték neveléséről / Vadas Jenő | F193: Budapest, 1889 | G193: 1889 | K193: 31 p. | L193: 31 | N193: DK 186 | O193: DK 117 | Q193: XI/3/5
A194: D-2 | B194: K | C194: Archív | D194: Masch A. | E194: Az időjárástan alapvonalai / Masch A. | F194: Budapest, 1877 | G194: 1877 | K194: 146 p. | L194: 146 | N194: DK 187 | O194: DK 98 | Q194: XI/3/5
A195: D-2 | B195: K | C195: Archív | E195: Jelentés az 1886-1889. években felmerült erdei rovarkárokról | F195: Budapest : Földmívelésügyi M.kir.Minisztérium, 1891 | G195: 1891 | K195: 47 p. + 4 t. | L195: 51 | N195: DK 188 | O195: DK 350 | Q195: XI/3/5
A196: D-2 | B196: K | C196: Archív | D196: Bedő Albert (1839-1918) | E196: Erdészeti ügyek közigazgatási kezelése hazánkban / Bedő Albert | F196: Budapest, 1883 | G196: 1883 | K196: 40 p. | L196: 40 | N196: DK 189 | O196: DK 8 | Q196: XI/3/5
A197: D-2 | B197: K | C197: Archív | D197: Bedő Albert (1839-1918) | E197: Erdészeti teendőinkről / Bedő Albert | F197: Budapest, 1880 | G197: 1880 | K197: 19 p. | L197: 19 | M197: Különlenyomat Erdészeti Lapok 1880 | N197: Dk 190 | O197: Dk 7 | Q197: XI/3/5
A198: D-1 | B198: K | C198: Archív | D198: Bedő Albert (1839-1918) | E198: Erdőőr vagy az erdészet alapvonalai kérdésekben és feleletekben / Bedő Albert | F198: Budapest, 1896 | G198: 1896 | K198: 241 p. | L198: 241 | N198: Dk 191 | O198: DK 251 | Q198: XI/3/5
A199: D-3 | B199: K | C199: Archív | D199: Bedő Albert (1839-1918) | E199: Tájékozás erdészeti kiállításunk ügyében / Bedő Albert | F199: Budapest, 1872 | G199: 1872 | K199: 16 p. | L199: 16 | N199: DK 192 | O199: DK 3 | Q199: XI/3/5
A200: D-3 | B200: K | C200: Archív | D200: Bedő Albert (1839-1918) | E200: Az erdők az 1878. évi párizsi kiállításon / Bedő Albert | F200: Budapest, 1879 | G200: 1879 | K200: 54 p. | L200: 54 | N200: DK 193 | O200: Dk 6 | Q200: XI/3/5
... 4300 more rows

Sheet Wagner Károly Könyvtár kereső
A1: A Országos Erdészeti Egyesület Wagner Károly Erdészeti Szakkönyvtárának több szempont szerint kereshető leltárkönyve. Az utolsó frissítés dátuma: 2022.05.18.

Sheet filter (hidden)
A1: Szerző | B1: Cím | C1: Digit | D1: ARCHIV | F1: leltári szám | G1: helyrajzi szám
A2: ** | B2: *könyvtár*

Sheet puffersheet (hidden)
A1: DIGIT | B1: K/F | C1: ARCHIV | D1: Szerző | E1: Cím | F1: kiadás helye | G1: év | H1: évfolyam | I1: ÉVSZÁM | J1: szám | K1: terjedelem | L1: oldalszám | M1: megjegyzés | N1: helyrajzi szám | O1: leltári szám | P1: Beszerzés módja | Q1: helyre mutató raktári jelzet
B2: K | C2: Archív | D2: Szabó Ervin | E2: A Budapesti Kereskedelmi és Iparkamara könyvtárainak katalógusa / Szabó Ervin | F2: Budapest, 1902 | G2: 1902 | K2: 891 p. | N2: Q 111 | O2: ÁK 1730 | Q2: VIII/1
A3: D-5 | B3: K | D3: Papp László | E3: Mezőgazdasági Kiskönyvtár 2. Az erdő élete | F3: Budapest, 1951 | G3: 1951 | K3: 91 p. | O3: 39/L 2019 | Q3: 2/6
B4: K | D4: Rimler László | E4: Mezőgazdasági Kiskönyvtár 3. Csemetekert | F4: Budapest, 1951 | G4: 1951 | K4: 111 p. | O4: 40/L 2019 | Q4: 2/6
B5: K | D5: Babos Imre (1901-1979) | E5: Mezőgazdasági Kiskönyvtár 4. Az erdők telepítése | F5: Budapest, 1951 | G5: 1951 | K5: 127 p. | O5: 41/L 2019 | Q5: 2/6
B6: K | D6: Babos Imre (1901-1979) | E6: Mezőgazdasági Kiskönyvtár 4. Az erdők telepítése | F6: Budapest, 1951 | G6: 1951 | K6: 127 p. | O6: 42/L 2019 | Q6: 2/6
B7: K | D7: Babos Imre (1901-1979) | E7: Mezőgazdasági Kiskönyvtár 4. Az erdők telepítése | F7: Budapest, 1951 | G7: 1951 | K7: 127 p. | O7: 43/L 2019 | Q7: 2/6
A8: D-5 | B8: K | D8: Lády Géza | E8: Mezőgazdasági Kiskönyvtár 7. Országfásítás | F8: Budapest, 1952 | G8: 1952 | K8: 170 p. | O8: 44/L 2019 | Q8: 2/6
B9: K | D9: Hiller István | E9: Hazánk első szakkönyvtárának kialakulása- az Erdészeti és Faipari Egyetem könyvtárának története | F9: Sopron | G9: 1975 | K9: 291 | O9: 2208/L 2019 | Q9: 3/2
B10: K | D10: Witt Lajos, Páll Endre | E10: Erdészeti tudományos kiskönyvtár 3. | F10: Budapest, 1952 | G10: 1952 | K10: 29 p. | O10: 61/L 2019 | Q10: 4/1
B11: K | D11: Majer Antal (1920-1996) | E11: Erdészeti tudományos kiskönyvtár 1. Az aljnövényzet szerepe bükköseink felújításában | F11: Budapest, 1952 | G11: 1952 | K11: 31 p. | O11: 67/L 2019 | Q11: 4/1
B12: K | D12: Hiller István | E12: Az Erdészeti és Faipari Egyetem Központi Könyvtára | F12: Sopron, 1978 | K12: 37 | O12: 71/1983 | Q12: 4/5
B13: K | D13: Hiller István (1934-1993) | E13: Az Erdészeti és Faipari Egyetem Központi Könyvtára | F13: Sopron | G13: 1978 | K13: 37 | O13: 70/1983 | Q13: 9/1
A14: D-5 | B14: K | D14: Gertheis Antal | E14: Erdészet- Mezőgazdasági könyvtárosképzés füzetei, középfok | F14: Budapest | G14: 1968 | K14: 52 | O14: 1/1969 | Q14: 10/4
B15: K | D15: Gertheis Antal | E15: Erdészet- Mezőgazdasági könyvtárosképzés füzetei, középfok | F15: Budapest | G15: 1968 | K15: 52 | O15: 2/1969 | Q15: 10/4
A16: D-5 | B16: K | D16: Hiller István | E16: Hazánk első szakkönyvtárának kialakulása- az Erdészeti és Faipari Egyetem könyvtárának története | F16: Sopron | G16: 1975 | K16: 291 | O16: 1303/L 2019 | Q16: 11/3
B17: K | D17: Hiller István (1934-1993) | E17: Nyugat-Magyarországi Egyetem Központi Könyvtára / Hiller István, Mastalírné Zádor Márta, Tompa Zsoltné | F17: 2. átd. bőv. kiad. Sopron : [NyME], 2000 ([Sopron] Szociális Foglalkoztató Ny.) | G17: 2. á | K17: 56 p. : ill. ; 24 cm | N17: IV-11/4 IV-11/4 | O17: 26/2004 | Q17: 11/4
B18: K | D18: Hiller István (1934-1993) | E18: Nyugat-Magyarországi Egyetem Központi Könyvtára / Hiller István, Mastalírné Zádor Márta, Tompa Zsoltné | F18: 2. átd. bőv. kiad. Sopron : [NyME], 2000 ([Sopron] Szociális Foglalkoztató Ny.) | G18: 2. á | K18: 56 p. : ill. ; 24 cm | N18: IV-11/4 IV-11/4 | O18: 27/2004 | Q18: 11/4
B19: K | D19: Majer Antal (1920-1996) | E19: Erdészeti tudományos kiskönyvtár 1. Az aljnövényzet szerepe bükköseink felújításában | F19: Budapest, 1952 | O19: 1453/L 2019 | Q19: 12/3
B20: K | D20: Bencze Lajos | E20: Erdészeti tudományos kiskönyvtár 1952.4. A vadállomány az erdőművelési kérdések türkében | F20: Budapest | G20: 1952 | K20: 23 | O20: 1454/L 2019 | Q20: 12/3
B21: K | D21: Pallay Nándor | E21: Erdészeti tudományos kiskönyvtár 1954 11. A tüzifa súlyapadása | F21: Budapest | G21: 1954 | K21: 75 | O21: 1456/L 2019 | Q21: 12/3
B22: K | D22: Lonkai János, Hoffmann István | E22: Erdészeti tudományos kiskönyvtár 1953 10. Fűrészüzemek berendezése és technológiája | F22: Budapest | G22: 1953 | K22: 95 | O22: 1457/L 2019 | Q22: 12/3
A23: D-5 | B23: K | D23: Rimler László | E23: Mezőgazdasági Kiskönyvtár 3. Csemetekert | F23: Budapest, 1951 | G23: 1951 | K23: 111 p. | O23: 1515/L 2019 | Q23: 12/3
B24: K | D24: Rimler László | E24: Mezőgazdasági Kiskönyvtár 3. Csemetekert | F24: Budapest, 1951 | G24: 1951 | K24: 111 p. | O24: 1516/L 2019 | Q24: 12/3
B25: K | D25: Rimler László | E25: Mezőgazdasági Kiskönyvtár 3. Csemetekert | F25: Budapest, 1951 | G25: 1951 | K25: 111 p. | O25: 1517/L 2019 | Q25: 12/3
A26: D-5 | B26: K | D26: Babos Imre (1901-1979) | E26: Mezőgazdasági Kiskönyvtár 4. Az erdők telepítése | F26: Budapest, 1951 | G26: 1951 | K26: 127 p. | O26: 1518/L 2019 | Q26: 12/3
B27: K | D27: Babos Imre (1901-1979) | E27: Mezőgazdasági Kiskönyvtár 4. Az erdők telepítése | F27: Budapest, 1951 | G27: 1951 | K27: 127 p. | O27: 1519/L 2019 | Q27: 12/3
A28: D-5 | B28: K | D28: Partos Gyula | E28: Mezőgazdasági kiskönyvtár 5. Erdőápolás | F28: Budapest | G28: 1951 | K28: 61 | O28: 1520/L 2019 | Q28: 12/3
A29: D-5 | B29: K | D29: Mészáros István | E29: Mezőgazdasági kiskönyvtár 10. Erdőbecslés | F29: Budapest | G29: 1951 | K29: 95 | O29: 1521/L 2019 | Q29: 12/3
A30: D-5 | B30: K | D30: Lukács István | E30: Mezőgazdasági kiskönyvtár 12. Erdei melléktermékek | F30: Budapest | G30: 1951 | K30: 87 | O30: 1522/L 2019 | Q30: 12/3
A31: D-5 | B31: K | D31: Káldy József | E31: Mezőgazdasági kiskönyvtár 14. Gépesítjük az erdőgazdálkodást | F31: Budapest | K31: 97 | O31: 1523/L 2019 | Q31: 12/3
A32: D-5 | B32: K | D32: Halász Aladár | E32: Mezőgazdasági kiskönyvtár 16. Erdészeti építés és szállítás | F32: Budapest | G32: 1951 | K32: 100 | O32: 1524/L 2019 | Q32: 12/3
B33: K | D33: Bertóti István | E33: Mezőgazdasági kiskönyvtár 9. Vadgazdaságunk / Bertóti István | F33: Budapest, 1952 | G33: 1952 | K33: 95 p. | N33: 5859 | Q33: 12/4
A34: D-5 | B34: K | D34: Mátyás Vilmos | E34: Mezőgazdasági kiskönyvtár 6. Erdei magvak / Mátyás Vilmos | F34: Budapest, 1952 | G34: 1952 | K34: 136 p. | N34: 5933 | Q34: 12/4
A35: D-5 | B35: K | D35: Bertóti István | E35: Mezőgazdasági kiskönyvtár 9. Vadgazdaságunk / Bertóti István | F35: Budapest, 1952 | G35: 1952 | K35: 95 p. | N35: 5997 | Q35: 12/4
A36: D-5 | B36: K | D36: Tuskó Ferenc | E36: Mezőgazdasági kiskönyvtár 1. Az erdő növényvilága | F36: Budapest | G36: 1951 | K36: 86 | O36: 1545/L 2019 | Q36: 12/4
B37: K | D37: Tuskó Ferenc | E37: Mezőgazdasági kiskönyvtár 1. Az erdő növényvilága | F37: Budapest | G37: 1951 | K37: 86 | O37: 1546/L 2019 | Q37: 12/4
B38: K | D38: Rimler László | E38: Mezőgazdasági Kiskönyvtár 3. Csemetekert | F38: Budapest, 1951 | G38: 1951 | K38: 111 | O38: 1547/L 2019 | Q38: 12/4
B39: K | D39: Rimler László | E39: Mezőgazdasági Kiskönyvtár 3. Csemetekert | F39: Budapest, 1951 | G39: 1951 | K39: 111 | O39: 1548/L 2019 | Q39: 12/4
B40: K | D40: Rimler László | E40: Mezőgazdasági Kiskönyvtár 3. Csemetekert | F40: Budapest, 1951 | G40: 1951 | K40: 111 | O40: 1549/L 2019 | Q40: 12/4
B41: K | D41: Rimler László | E41: Mezőgazdasági Kiskönyvtár 3. Csemetekert | F41: Budapest, 1951 | G41: 1951 | K41: 111 | O41: 1550/L 2019 | Q41: 12/4
B42: K | D42: Babos Imre (1901-1979) | E42: Mezőgazdasági Kiskönyvtár 4. Az erdők telepítése | F42: Budapest, 1951 | G42: 1951 | K42: 127 | O42: 1551/L 2019 | Q42: 12/4
B43: K | D43: Lonkai János | E43: Erdészeti tudományos kiskönyvtár 1953 10. Fűrészüzemek berendezése és technológiája / Lonkai János, Hoffmann István | F43: Budapest, 1953 | G43: 1953 | K43: 95 p. | N43: 5910 | Q43: 13/3
B44: K | D44: Szabó Aladár et al | E44: Fatermelés faipar fakereskedelem (fások könyvtára) | F44: Budapest | G44: 1947 | K44: 327 | O44: 1704/L 2019 | Q44: 13/3
B45: K | D45: Babos Imre | E45: Erdészeti tudományos kiskönyvtár 1952. 2. Erdőművelés a fatömegfokozás szolgálatában | F45: Budapest | G45: 1952 | K45: 24 | N45: 5935/II | Q45: 13/3
A46: D-5 | B46: K | D46: Witt Lajos | E46: Erdészeti tudományos kiskönyvtár 1952.3. Az alsó szintek biológiai vonatkozásai | F46: Budapest | G46: 1952 | K46: 29 | O46: 1705/L 2019 | Q46: 13/3
A47: D-5 | B47: K | D47: Bencze Lajos | E47: Erdészeti tudományos kiskönyvtár 1952. 4. A vadállomány az erdőművelési kérdések tükrében | F47: Budapest | G47: 1952 | K47: 23 | N47: 5934 | Q47: 13/3
B48: K | D48: Bencze Lajos | E48: Erdészeti tudományos kiskönyvtár 1952. 4. A vadállomány az erdőművelési kérdések tükrében | F48: Budapest | G48: 1952 | K48: 23 | O48: 1706/L 2019 | Q48: 13/3
B49: K | D49: Babos Imre | E49: Erdészeti tudományos kiskönyvtár 1952. 2. Erdőművelés a fatömegfokozás szolgálatában | F49: Budapest | G49: 1952 | K49: 24 | O49: 2161/L 2019 | Q49: 15/5
A50: D-5 | B50: K | D50: Lonkai János | E50: Mezőgazdasági kiskönyvtár 13. A fa feldolgozása / Lonkai János | F50: Budapest, 1951 | G50: 1951 | K50: 75 p. | N50: 5861 | Q50: 21/4
A51: D-5 | B51: K | D51: Benedek Attila | E51: Mezőgazdasági kiskönyvtár 11. Fakitermelés / Benedek Attila | F51: Budapest, 1951 | G51: 1951 | K51: 100 p. | N51: 5862 | Q51: 21/4
A52: D-5 | B52: K | D52: Mészáros István | E52: Mezőgazdasági kiskönyvtár 10. Erdőbecslés / Mészáros István | F52: Budapest, 1951 | G52: 1951 | K52: 95 p. | N52: 5863 | Q52: 21/4
A53: D-5 | B53: K | D53: Halász Aladár | E53: Mezdőgazdasági kiskönyvtár 16. Erdészeti építés és szállítás / Halász Aladár | F53: Budapest, 1951 | G53: 1951 | K53: 100 p. | N53: 5864 | Q53: 21/4
B54: K | D54: Bründl Lajos | E54: Mezdőgazdasági kiskönyvtár 18. Füzvesszőtermelés / Bründl Lajos, Lukáts István | F54: Budapest, 1952 | G54: 1952 | K54: 71 p. | N54: 5865 | Q54: 21/4
A55: D-5 | B55: K | D55: Imrik László | E55: Mezőgazdasági szakkönyvtár 5. Erdészeti műszaki ismeretek / Imrik László, Teszárs Géza, Kollwentz Ödön | F55: Budapest, 1952 | G55: 1952 | K55: 156 p. | N55: 5869 | Q55: 21/4
A56: D-5 | B56: K | D56: Tuskó Ferenc | E56: Mezőgazdasági szakkönyvtár 3. Erdőhasználat / Tuskó Ferenc, Kollwentz Ödön, Farkas Imre | F56: Budapest, 1952 | G56: 1952 | K56: 291 p. | N56: 5873 | Q56: 21/4
B57: K | D57: Lukács István | E57: Mezdőgazdasági kiskönyvtár 12. Erdei melléktermékek / Lukács István | F57: Budapest, 1951 | G57: 1951 | K57: 87 p. | N57: 5929 | Q57: 21/4
B58: K | D58: Káldy József (1920-1983) | E58: Mezőgazdasági kiskönyvtár 14. Gépesítjük az erdőgazdálkodást / Káldy József | F58: Budapest, 1951 | G58: 1951 | K58: 97 p. | N58: 5931 | Q58: 21/4
B59: K | D59: Mátyás Vilmos | E59: Mezőgazdasági kiskönyvtár 6. Erdei magvak | F59: Budapest | G59: 1952 | K59: 136 | O59: 2608/L 2019 | Q59: 21/4
B60: K | D60: Bertóti István | E60: Mezőgazdasági kiskönyvtár 9. Vadgazdaságunk | F60: Budapest | G60: 1952 | K60: 95 | O60: 2609/L 2019 | Q60: 21/4
A61: D-5 | B61: K | D61: Lukács István | E61: Mezdőgazdasági kiskönyvtár 12. Erdei melléktermékek / Lukács István | F61: Budapest, 1951 | G61: 1951 | K61: 87 p. | O61: 2610/L 2019 | Q61: 21/4
B62: K | D62: Lukács István | E62: Mezdőgazdasági kiskönyvtár 12. Erdei melléktermékek / Lukács István | F62: Budapest, 1951 | G62: 1951 | K62: 87 p. | O62: 2611/L 2019 | Q62: 21/4
A63: D-5 | B63: K | D63: Kenyeres Lajos | E63: Mezdőgazdasági kiskönyvtár 15. Természetvédelem | F63: Budapest | G63: 1952 | K63: 67 | O63: 2612/L 2019 | Q63: 21/4
A64: D-5 | B64: K | D64: Bründl Lajos | E64: Mezdőgazdasági kiskönyvtár 18. Füzvesszőtermelés / Bründl Lajos, Lukáts István | F64: Budapest, 1952 | G64: 1952 | K64: 71 p. | O64: 2613/L 2019 | Q64: 21/4
B65: K | D65: Gereben Ferenc (1942-) | E65: Könyv, könyvtár, közönség : A magyar társadalom olvasáskultúrája olvasás- és könyvtárszociológiai adatok tükrében / Gereben Ferenc ; [közread. az] Országos Széchényi Könyvtár | F65: Budapest : OSZK, 2000 ([Budapest] Akaprint Nyip. Kft.) | G65: 2000 | K65: 228 p. ; 24 cm | N65: I-S.I.I | O65: 80/2006 | Q65: S.I.I
B66: K | D66: Gertheis Antal | E66: A korszerű erdőművelés irányai : témadokumentáció / Gertheis Antal ; [kiad. a] Károlyi Mihály Országos Mezőgazdasági Könyvtár és Dokumentációs Központ | F66: Budapest : Károlyi Mihály Országos Mezőgazdasági Könyvtár és Dokumentációs Központ, 1965 (Budapest Házi soksz.) | G66: 1965 | K66: IV, 79 p. ; 24 cm | N66: IV-S.I.II | O66: 283-1/2006 | Q66: S.I.II
B67: K | D67: Lády Géza | E67: Mezőgazdasági Kiskönyvtár 7. Országfásítás | F67: Budapest | G67: 1952 | K67: 170 | O67: 217/2008 | P67: Lády Géza hagyatéka | Q67: S.I.IV
B68: K | D68: Rimler László | E68: Mezőgazdasági Kiskönyvtár 3. Csemetekert | F68: Budapest | G68: 1951 | K68: 111 | O68: 225/2008 | P68: Lády Géza hagyatéka | Q68: S.I.IV
B69: K | D69: Partos Gyula | E69: Mezőgazdasági kiskönyvtár 5. Erdőápolás | F69: Budapest | G69: 1953 | K69: 61 | O69: 226/2008 | P69: Lády Géza hagyatéka | Q69: S.I.IV
B70: K | D70: Lonkai János | E70: Mezőgazdasági kiskönyvtár 13. A fa feldolgozása / Lonkai János | F70: Budapest | G70: 1951 | K70: 75 | O70: 228/2008 | P70: Lády Géza hagyatéka | Q70: S.I.IV
B71: F | D71: Bencze Lajos | E71: A vadállomány az erdőművelési kérdések tükrében- Erdészeti Tudományos kiskönyvtár 1952/4 | F71: Budapest | G71: 1952 | I71: 1952 | J71: 4 | O71: 255/2008 | P71: Lády Géza hagyatéka | Q71: S.I.V
B72: F | D72: Majer Antal | E72: Az aljnövényzet szerepe bükköseink felújításában- Erdészeti Tudományos kiskönyvtár 1952/1 | F72: Budapest | G72: 1952 | I72: 1952 | J72: 1 | O72: 256/2008 | P72: Lády Géza hagyatéka | Q72: S.I.V
B73: K | D73: Hiller István | E73: Az Erdészeti és Faipari Egyetem Könyvtárának története | F73: Sopron | G73: 1975 | K73: 291 | O73: 327/2008 | P73: Barkóczay László ajándéka | Q73: S.II.I
B74: K | D74: Sárvári János | E74: Az Országos Erdészeti Egyesület székháza és Wagner Károly Erdészeti könyvtárának bemutatása | F74: Budapest | G74: 2006 | K74: 41 | M74: kézirat, floppy melléklet | O74: 269/2010 | P74: Titkársági példányok | Q74: S.II.III
B75: K | D75: Hiller István | E75: Az Erdészeti és Faipari Egyetem Központi Könyvtára | F75: Sopron | G75: 1978 | K75: 37 | O75: 181/2011 | P75: Ormos Balázs ajándéka | Q75: S.II.IV
B76: K | D76: Hiller István | E76: Az Erdészeti és Faipari Egyetem Könyvtárának története | F76: Sopron | G76: 1978 | K76: 37 | O76: 61/2012 | P76: Ormos Balázs ajándéka | Q76: S.IV.I
B77: F | D77: Mátyás Vilmos | E77: Mezőgazdasági kiskönyvtár 6. Erdei magvak | F77: Budapest | G77: 1952 | K77: 136 | O77: 177/2015 | P77: Varga Szabolcs ajándéka | Q77: S.IV.IV
B78: F | D78: Lukács István | E78: Mezőgazdasági kiskönyvtár 12. Erdei melléktermékek | F78: Budapest | G78: 1951 | K78: 87 | O78: 178/2015 | P78: Varga Szabolcs ajándéka | Q78: S.IV.IV
B79: F | D79: Tuskó Ferenc | E79: Mezőgazdasági kiskönyvtár 1. Az erdő növényvilága | F79: Budapest | G79: 1951 | K79: 86 | O79: 337/2015 | P79: Holdampf Gyula ajándéka | Q79: S.IV.IV
B80: F | D80: Partos Gyula | E80: Mezőgazdasági kiskönyvtár 5. Erdőápolás | F80: Budapest | G80: 1953 | K80: 61 | O80: 352/2016 | P80: Feiszt Ottó ajándéka | Q80: S.V.II
B81: F | D81: Mátyás Vilmos | E81: Mezőgazdasági kiskönyvtár 6. Erdei magvak | F81: Budapest | G81: 1952 | K81: 136 | O81: 353/2016 | P81: Feiszt Ottó ajándéka | Q81: S.V.II
B82: F | D82: Majer Antal | E82: Az aljnövényzet szerepe bükköseink felújításában- Erdészeti Tudományos kiskönyvtár 1952/1 | F82: Budapest | G82: 1952 | I82: 1952 | J82: 1 | O82: 362/2016 | P82: Feiszt Ottó ajándéka | Q82: S.V.II
B83: F | D83: Babos Imre | E83: Erdőművelés a fatömegfokozás szolgálatában- Erdészeti Tudományos kiskönyvtár 1952/2 | F83: Budapest | G83: 1952 | I83: 1952 | J83: 2 | O83: 363/2016 | P83: Feiszt Ottó ajándéka | Q83: S.V.II
B84: F | D84: Majer Antal | E84: Az aljnövényzet szerepe bükköseink felújításában- Erdészeti Tudományos kiskönyvtár 1952/1 | F84: Budapest | G84: 1952 | I84: 1952 | J84: 1 | O84: 201/2017 | P84: Holdampf Gyula ajándéka | Q84: S.V.III
B85: K | D85: Hiller István | E85: Az Erdészeti és Faipari Egyetem Központi Könyvtára | F85: Sopron | G85: 1978 | K85: 38 | O85: 296/2017 | P85: Nyírádi Lajos hagyatéka | Q85: S.V.IV
B86: K | D86: Hiller István et al | E86: A műszaki felsőoktatás első könyvtára Magyarországon 1735-1985- Selmecbánya- Sopron-Miskolc | F86: Miskolc | G86: 1989 | K86: 348 | O86: 404/2020 | P86: Jakabffy Ernő ajándéka 2003-ból | Q86: S.VI.IV
B87: F | D87: Tompa Károly, Baranyai József | E87: Erdőművelés 2. Mezőgazdasági Szakkönyvtár 2. | F87: Budapest | G87: 1952 | K87: 303 | O87: 540/2021 | P87: Holdampf Gyula ajándéka | Q87: KR.II.2
B88: F | D88: Szász Tibor | E88: Fakitermelési szerszámkísérletek- Erdészeti Tudományos Kiskönyvtár 9. | F88: Budapest | G88: 1953 | O88: 548/2021 | P88: Holdampf Gyula ajándéka | Q88: KR.II.2
B89: F | D89: Babos Imre (1901-1979) | E89: Mezőgazdasági Kiskönyvtár 4. Az erdők telepítése | F89: Budapest | G89: 1951 | K89: 127 | O89: 549/2021 | P89: Holdampf Gyula ajándéka | Q89: KR.II.2
B90: F | D90: Partos Gyula | E90: Mezőgazdasági kiskönyvtár 5. Erdőápolás | F90: Budapest | G90: 1951 | K90: 61 | O90: 550/2021 | P90: Holdampf Gyula ajándéka | Q90: KR.II.2
B91: F | D91: Bertóti István | E91: Mezőgazdasági kiskönyvtár 9. Vadgazdaságunk / Bertóti István | F91: Budapest | G91: 1952 | K91: 95 | O91: 551/2021 | P91: Holdampf Gyula ajándéka | Q91: KR.II.2
B92: F | D92: Bertóti István | E92: Mezőgazdasági kiskönyvtár 9. Vadgazdaságunk / Bertóti István | F92: Budapest | G92: 1952 | K92: 95 | O92: 552/2021 | P92: Holdampf Gyula ajándéka | Q92: KR.II.2
B93: F | D93: Halász Aladár | E93: Mezőgazdasági kiskönyvtár 16. Erdészeti építés és szállítás | F93: Budapest | G93: 1951 | K93: 100 | O93: 553/2021 | P93: Holdampf Gyula ajándéka | Q93: KR.II.2
B94: K | D94: Szabó Aladár et al | E94: Fatermelés faipar fakereskedelem (fások könyvtára) | F94: Budapest | G94: 1947 | K94: 327 | O94: 839/2021 | P94: Holdampf Gyula ajándéka | Q94: KR.II.3
B95: K | D95: Schönherr Gyula(szerk) | E95: A Múzeumok és Könyvtárak Országos Tanácsának IV. jelentése 1904-1905 | F95: Budapest | G95: 1906 | K95: 105 | O95: 1318/2021 | P95: Régi könyvtári állomány része | Q95: RGY I.I.
B96: K | D96: Sallai István, Sebestyén Géza | E96: A könyvtáros kézikönyve | F96: Budapest | G96: 1956 | K96: 576 | O96: 1947/2021 | P96: Régi könyvtári állomány része | Q96: RGY II.I.
B97: K | D97: Hiller István | E97: Az Erdészeti és Faipari Egyetem Központi Könyvtára | F97: Sopron | G97: 1978 | K97: 38 | O97: 2009/2021 | P97: Régi könyvtári állomány része | Q97: RGY II.I.
